[Event "Titled Tuesday Blitz November 07 Late 2023"]
[White "Estrada Nieto, Julian"]
[Black "Tokhirjonova, Gulrukhbegim"]
[WhiteFideId "5101018"]
[BlackFideId "14203626"]
[WhiteElo "2463"]
[BlackElo "2641"]
[Result "0-1"]
[Round "11"]
[TimeControl "180+1"]
[Date "2023.11.07"]
[WhiteClock "0:00:00"]
[BlackClock "0:00:59"]
[Board "35"]

1. e4 {[%clk 0:03:00]}  e5 {[%clk 0:02:57]} 2. Nf3 {[%clk 0:03:00]}  Nc6 {[%clk 0:02:58]} 3. Bb5 {[%clk 0:03:00]}  a6 {[%clk 0:02:57]} 4. Ba4 {[%clk 0:03:01]}  Nf6 {[%clk 0:02:55]} 5. O-O {[%clk 0:03:00]}  Nxe4 {[%clk 0:02:52]} 6. d4 {[%clk 0:02:58]}  b5 {[%clk 0:02:52]} 7. Bb3 {[%clk 0:02:58]}  d5 {[%clk 0:02:52]} 8. dxe5 {[%clk 0:02:58]}  Be6 {[%clk 0:02:51]} 9. Qe2 {[%clk 0:02:57]}  Be7 {[%clk 0:02:47]} 10. Rd1 {[%clk 0:02:53]}  O-O {[%clk 0:02:47]} 11. Be3 {[%clk 0:02:32]}  Na5 {[%clk 0:02:34]} 12. Nbd2 {[%clk 0:02:28]}  Qc8 {[%clk 0:02:22]} 13. Nxe4 {[%clk 0:02:17]}  dxe4 {[%clk 0:02:20]} 14. Ng5 {[%clk 0:02:01]}  Nxb3 {[%clk 0:02:06]} 15. axb3 {[%clk 0:01:59]}  Bxg5 {[%clk 0:01:50]} 16. Bxg5 {[%clk 0:01:59]}  Bg4 {[%clk 0:01:50]} 17. f3 {[%clk 0:01:49]}  exf3 {[%clk 0:01:50]} 18. gxf3 {[%clk 0:01:49]}  Bh5 {[%clk 0:01:49]} 19. Qe4 {[%clk 0:01:22]}  Re8 {[%clk 0:01:45]} 20. Rd3 {[%clk 0:01:01]}  Bg6 {[%clk 0:01:41]} 21. Qf4 {[%clk 0:00:57]}  Bxd3 {[%clk 0:01:38]} 22. cxd3 {[%clk 0:00:58]}  h6 {[%clk 0:01:39]} 23. Bh4 {[%clk 0:00:57]}  g5 {[%clk 0:01:38]} 24. Bxg5 {[%clk 0:00:57]}  hxg5 {[%clk 0:01:38]} 25. Qxg5+ {[%clk 0:00:57]}  Kf8 {[%clk 0:01:31]} 26. Qh6+ {[%clk 0:00:34]}  Ke7 {[%clk 0:01:24]} 27. Qf6+ {[%clk 0:00:34]}  Kd7 {[%clk 0:01:23]} 28. Qxf7+ {[%clk 0:00:27]}  Kc6 {[%clk 0:01:23]} 29. Rc1+ {[%clk 0:00:26]}  Kb6 {[%clk 0:01:23]} 30. Qd5 {[%clk 0:00:17]}  c6 {[%clk 0:01:16]} 31. Qc5+ {[%clk 0:00:09]}  Kb7 {[%clk 0:01:15]} 32. d4 {[%clk 0:00:03]}  Qe6 {[%clk 0:01:14]} 33. d5 {[%clk 0:00:02]}  Qxd5 {[%clk 0:01:13]} 34. Qxd5 {[%clk 0:00:02]}  cxd5 {[%clk 0:01:13]} 35. Rc5 {[%clk 0:00:03]}  Rxe5 {[%clk 0:01:11]} 36. f4 {[%clk 0:00:02]}  Rf5 {[%clk 0:01:10]} 37. Kg2 {[%clk 0:00:02]}  Raf8 {[%clk 0:01:08]} 38. Kg3 {[%clk 0:00:02]}  Kb6 {[%clk 0:01:07]} 39. b4 {[%clk 0:00:02]}  Rxf4 {[%clk 0:01:07]} 40. Rxd5 {[%clk 0:00:02]}  Rxb4 {[%clk 0:01:07]} 41. Rd6+ {[%clk 0:00:02]}  Ka5 {[%clk 0:01:04]} 42. h4 {[%clk 0:00:02]}  Rxb2 {[%clk 0:01:03]} 43. h5 {[%clk 0:00:02]}  Rb3+ {[%clk 0:01:03]} 44. Kg4 {[%clk 0:00:02]}  Rg8+ {[%clk 0:01:00]} 45. Kf5 {[%clk 0:00:02]}  Rf3+ {[%clk 0:00:59]} 46. Ke4 {[%clk 0:00:02]}  Rh3 {[%clk 0:00:59]} 47. h6 {[%clk 0:00:00]}  Rh8 {[%clk 0:00:59]} 0-1


[Site "https://www.chess.com"]

[Event "Titled Tuesday Blitz November 07 Late 2023"]
[White "Makaraci, Tunahan"]
[Black "Shuvalova, Polina"]
[WhiteFideId "6356559"]
[BlackFideId "24171760"]
[WhiteElo "2462"]
[BlackElo "2636"]
[Result "0-1"]
[Round "11"]
[TimeControl "180+1"]
[Date "2023.11.07"]
[WhiteClock "0:00:02"]
[BlackClock "0:00:02"]
[Board "36"]

1. e4 {[%clk 0:03:00]}  c6 {[%clk 0:03:00]} 2. c4 {[%clk 0:03:00]}  d5 {[%clk 0:03:00]} 3. exd5 {[%clk 0:03:01]}  cxd5 {[%clk 0:03:01]} 4. cxd5 {[%clk 0:03:01]}  Nf6 {[%clk 0:03:02]} 5. Nc3 {[%clk 0:03:02]}  g6 {[%clk 0:02:59]} 6. Nf3 {[%clk 0:03:02]}  Bg7 {[%clk 0:02:59]} 7. d4 {[%clk 0:03:02]}  O-O {[%clk 0:03:00]} 8. h3 {[%clk 0:03:01]}  Nxd5 {[%clk 0:02:59]} 9. Bc4 {[%clk 0:03:01]}  Nb6 {[%clk 0:02:51]} 10. Bb3 {[%clk 0:03:00]}  Nc6 {[%clk 0:02:51]} 11. d5 {[%clk 0:02:58]}  Na5 {[%clk 0:02:47]} 12. O-O {[%clk 0:02:58]}  Nxb3 {[%clk 0:02:47]} 13. axb3 {[%clk 0:02:58]}  Bf5 {[%clk 0:02:37]} 14. Re1 {[%clk 0:02:42]}  Re8 {[%clk 0:02:27]} 15. Bg5 {[%clk 0:02:38]}  h6 {[%clk 0:02:24]} 16. Be3 {[%clk 0:02:33]}  a6 {[%clk 0:02:08]} 17. Bd4 {[%clk 0:02:30]}  Bxd4 {[%clk 0:01:45]} 18. Qxd4 {[%clk 0:02:28]}  Qd6 {[%clk 0:01:45]} 19. g4 {[%clk 0:02:25]}  Bd7 {[%clk 0:01:43]} 20. Rad1 {[%clk 0:02:24]}  Nc8 {[%clk 0:01:33]} 21. Ne4 {[%clk 0:02:15]}  Qf4 {[%clk 0:01:30]} 22. Kg2 {[%clk 0:02:06]}  Nd6 {[%clk 0:01:28]} 23. Ne5 {[%clk 0:01:51]}  Bb5 {[%clk 0:01:19]} 24. Re3 {[%clk 0:01:37]}  Rad8 {[%clk 0:01:17]} 25. Rde1 {[%clk 0:01:26]}  Nxe4 {[%clk 0:01:14]} 26. Rxe4 {[%clk 0:01:26]}  Qg5 {[%clk 0:00:52]} 27. f4 {[%clk 0:00:53]}  Qf6 {[%clk 0:00:50]} 28. Kg3 {[%clk 0:00:46]}  Rd6 {[%clk 0:00:47]} 29. Nc4 {[%clk 0:00:45]}  Qxd4 {[%clk 0:00:46]} 30. Rxd4 {[%clk 0:00:46]}  Rd7 {[%clk 0:00:41]} 31. d6 {[%clk 0:00:45]}  Kf8 {[%clk 0:00:30]} 32. dxe7+ {[%clk 0:00:30]}  Rexe7 {[%clk 0:00:30]} 33. Rxe7 {[%clk 0:00:27]}  Kxe7 {[%clk 0:00:16]} 34. Rxd7+ {[%clk 0:00:22]}  Kxd7 {[%clk 0:00:17]} 35. Kf3 {[%clk 0:00:12]}  Ke6 {[%clk 0:00:16]} 36. Ke4 {[%clk 0:00:11]}  Bc6+ {[%clk 0:00:15]} 37. Kd4 {[%clk 0:00:11]}  g5 {[%clk 0:00:12]} 38. f5+ {[%clk 0:00:10]}  Ke7 {[%clk 0:00:12]} 39. Ne3 {[%clk 0:00:06]}  Bf3 {[%clk 0:00:10]} 40. b4 {[%clk 0:00:06]}  Kd6 {[%clk 0:00:08]} 41. Nc4+ {[%clk 0:00:05]}  Ke7 {[%clk 0:00:06]} 42. Ne3 {[%clk 0:00:05]}  f6 {[%clk 0:00:07]} 43. Kc5 {[%clk 0:00:03]}  h5 {[%clk 0:00:05]} 44. gxh5 {[%clk 0:00:01]}  Bxh5 {[%clk 0:00:06]} 45. b5 {[%clk 0:00:02]}  axb5 {[%clk 0:00:05]} 46. Kxb5 {[%clk 0:00:03]}  Bf3 {[%clk 0:00:06]} 47. Kb6 {[%clk 0:00:03]}  Kd6 {[%clk 0:00:05]} 48. b4 {[%clk 0:00:04]}  Ke5 {[%clk 0:00:05]} 49. Nc4+ {[%clk 0:00:01]}  Kxf5 {[%clk 0:00:05]} 50. Nd6+ {[%clk 0:00:02]}  Ke6 {[%clk 0:00:03]} 51. Nxb7 {[%clk 0:00:03]}  Bxb7 {[%clk 0:00:01]} 52. Kxb7 {[%clk 0:00:03]}  f5 {[%clk 0:00:02]} 53. Kc6 {[%clk 0:00:03]}  f4 {[%clk 0:00:03]} 54. b5 {[%clk 0:00:04]}  f3 {[%clk 0:00:04]} 55. b6 {[%clk 0:00:04]}  f2 {[%clk 0:00:04]} 56. b7 {[%clk 0:00:05]}  f1=Q {[%clk 0:00:05]} 57. b8=Q {[%clk 0:00:06]}  Qc4+ {[%clk 0:00:04]} 58. Kb6 {[%clk 0:00:04]}  Qb4+ {[%clk 0:00:04]} 59. Kc7 {[%clk 0:00:05]}  Qc5+ {[%clk 0:00:03]} 60. Kb7 {[%clk 0:00:05]}  Qb5+ {[%clk 0:00:03]} 61. Kc8 {[%clk 0:00:06]}  Qc6+ {[%clk 0:00:03]} 62. Kd8 {[%clk 0:00:05]}  Qd5+ {[%clk 0:00:02]} 63. Kc7 {[%clk 0:00:02]}  Qd6+ {[%clk 0:00:02]} 64. Kc8 {[%clk 0:00:02]}  Qd7# {[%clk 0:00:02]} 0-1


[Site "https://www.chess.com"]

[Event "Titled Tuesday Blitz November 07 Late 2023"]
[White "Balla, Tamas-Kristof"]
[Black "Sargsyan, Anna M."]
[WhiteFideId "1208497"]
[BlackFideId "13308130"]
[WhiteElo "2395"]
[BlackElo "2611"]
[Result "0-1"]
[Round "11"]
[TimeControl "180+1"]
[Date "2023.11.07"]
[WhiteClock "0:00:07"]
[BlackClock "0:00:20"]
[Board "38"]

1. e4 {[%clk 0:03:00]}  e5 {[%clk 0:02:52]} 2. Nf3 {[%clk 0:02:58]}  Nc6 {[%clk 0:02:52]} 3. d4 {[%clk 0:02:59]}  exd4 {[%clk 0:02:52]} 4. Nxd4 {[%clk 0:03:00]}  Nf6 {[%clk 0:02:50]} 5. Nxc6 {[%clk 0:03:00]}  bxc6 {[%clk 0:02:51]} 6. e5 {[%clk 0:03:00]}  Qe7 {[%clk 0:02:51]} 7. Qe2 {[%clk 0:03:01]}  Nd5 {[%clk 0:02:51]} 8. h4 {[%clk 0:03:01]}  Qe6 {[%clk 0:02:51]} 9. Nd2 {[%clk 0:02:56]}  a5 {[%clk 0:02:48]} 10. Nf3 {[%clk 0:02:46]}  Ba6 {[%clk 0:02:47]} 11. c4 {[%clk 0:02:44]}  Bb4+ {[%clk 0:02:38]} 12. Bd2 {[%clk 0:02:43]}  Bxd2+ {[%clk 0:02:24]} 13. Qxd2 {[%clk 0:02:37]}  Nb6 {[%clk 0:02:21]} 14. b3 {[%clk 0:02:36]}  d6 {[%clk 0:02:10]} 15. Bd3 {[%clk 0:02:30]}  h6 {[%clk 0:01:59]} 16. O-O {[%clk 0:02:28]}  O-O {[%clk 0:01:59]} 17. Rfe1 {[%clk 0:02:24]}  d5 {[%clk 0:01:55]} 18. Nd4 {[%clk 0:02:17]}  Qg4 {[%clk 0:01:55]} 19. e6 {[%clk 0:01:59]}  fxe6 {[%clk 0:01:43]} 20. Nxe6 {[%clk 0:01:55]}  Rf7 {[%clk 0:01:41]} 21. cxd5 {[%clk 0:01:50]}  Bxd3 {[%clk 0:01:35]} 22. Qxd3 {[%clk 0:01:50]}  Nxd5 {[%clk 0:01:33]} 23. g3 {[%clk 0:01:41]}  Re8 {[%clk 0:01:25]} 24. Nd4 {[%clk 0:01:36]}  Ref8 {[%clk 0:01:23]} 25. Rf1 {[%clk 0:01:18]}  Nf4 {[%clk 0:01:21]} 26. Qc4 {[%clk 0:01:10]}  Nh3+ {[%clk 0:01:04]} 27. Kg2 {[%clk 0:01:05]}  Kh8 {[%clk 0:01:02]} 28. f3 {[%clk 0:00:54]}  Nf4+ {[%clk 0:01:02]} 29. Kf2 {[%clk 0:00:52]}  Qh3 {[%clk 0:00:55]} 30. gxf4 {[%clk 0:00:50]}  Qh2+ {[%clk 0:00:52]} 31. Ke1 {[%clk 0:00:41]}  Rxf4 {[%clk 0:00:51]} 32. Ne2 {[%clk 0:00:26]}  Rxc4 {[%clk 0:00:50]} 33. bxc4 {[%clk 0:00:26]}  Re8 {[%clk 0:00:48]} 34. Rf2 {[%clk 0:00:26]}  Qxh4 {[%clk 0:00:47]} 35. Rd1 {[%clk 0:00:25]}  Qxc4 {[%clk 0:00:46]} 36. Kf1 {[%clk 0:00:25]}  Qxa2 {[%clk 0:00:45]} 37. f4 {[%clk 0:00:24]}  a4 {[%clk 0:00:45]} 38. f5 {[%clk 0:00:24]}  a3 {[%clk 0:00:44]} 39. Nf4 {[%clk 0:00:21]}  Qc4+ {[%clk 0:00:42]} 40. Kg2 {[%clk 0:00:21]}  Qe4+ {[%clk 0:00:41]} 41. Kg3 {[%clk 0:00:18]}  Qxf5 {[%clk 0:00:41]} 42. Rg1 {[%clk 0:00:17]}  Qg5+ {[%clk 0:00:38]} 43. Kh2 {[%clk 0:00:17]}  Qh4+ {[%clk 0:00:34]} 44. Kg2 {[%clk 0:00:12]}  Kh7 {[%clk 0:00:33]} 45. Kf3 {[%clk 0:00:12]}  Rf8 {[%clk 0:00:32]} 46. Rg4 {[%clk 0:00:09]}  Qh1+ {[%clk 0:00:28]} 47. Rfg2 {[%clk 0:00:09]}  g5 {[%clk 0:00:26]} 48. Kg3 {[%clk 0:00:07]}  Rxf4 {[%clk 0:00:24]} 49. Re2 {[%clk 0:00:07]}  Rf3# {[%clk 0:00:20]} 0-1


[Site "https://www.chess.com"]

[Event "Titled Tuesday Blitz November 07 Late 2023"]
[White "Ventura Bolet, Maxim"]
[Black "Roebers, Eline"]
[WhiteFideId "22238824"]
[BlackFideId "1058401"]
[WhiteElo "2502"]
[BlackElo "2637"]
[Result "0-1"]
[Round "11"]
[TimeControl "180+1"]
[Date "2023.11.07"]
[WhiteClock "0:00:00"]
[BlackClock "0:00:55"]
[Board "42"]

1. e4 {[%clk 0:03:00]}  c5 {[%clk 0:02:59]} 2. Nf3 {[%clk 0:03:00]}  e6 {[%clk 0:03:00]} 3. b4 {[%clk 0:03:00]}  cxb4 {[%clk 0:02:59]} 4. a3 {[%clk 0:03:01]}  bxa3 {[%clk 0:02:57]} 5. d4 {[%clk 0:03:01]}  Nf6 {[%clk 0:02:54]} 6. Bd3 {[%clk 0:02:57]}  Nc6 {[%clk 0:02:53]} 7. Bxa3 {[%clk 0:02:45]}  Bxa3 {[%clk 0:02:48]} 8. Nxa3 {[%clk 0:02:45]}  O-O {[%clk 0:02:46]} 9. h4 {[%clk 0:02:41]}  Nb4 {[%clk 0:02:22]} 10. e5 {[%clk 0:02:34]}  Nxd3+ {[%clk 0:02:21]} 11. Qxd3 {[%clk 0:02:33]}  Nd5 {[%clk 0:02:21]} 12. Nc4 {[%clk 0:02:01]}  f5 {[%clk 0:02:11]} 13. g3 {[%clk 0:01:38]}  Qc7 {[%clk 0:02:09]} 14. O-O {[%clk 0:01:27]}  b6 {[%clk 0:02:03]} 15. Nd6 {[%clk 0:01:25]}  Bb7 {[%clk 0:01:59]} 16. c4 {[%clk 0:01:21]}  Ne7 {[%clk 0:01:52]} 17. Rfc1 {[%clk 0:00:56]}  Nc8 {[%clk 0:01:35]} 18. Nxb7 {[%clk 0:00:50]}  Qxb7 {[%clk 0:01:35]} 19. d5 {[%clk 0:00:51]}  Ne7 {[%clk 0:01:33]} 20. dxe6 {[%clk 0:00:46]}  dxe6 {[%clk 0:01:34]} 21. Ng5 {[%clk 0:00:46]}  Rad8 {[%clk 0:01:32]} 22. Qa3 {[%clk 0:00:39]}  Rfe8 {[%clk 0:01:17]} 23. Qxa7 {[%clk 0:00:28]}  Qxa7 {[%clk 0:01:16]} 24. Rxa7 {[%clk 0:00:28]}  Nc6 {[%clk 0:01:16]} 25. Rb7 {[%clk 0:00:20]}  Nxe5 {[%clk 0:01:15]} 26. Rxb6 {[%clk 0:00:21]}  Nd3 {[%clk 0:01:13]} 27. Rd1 {[%clk 0:00:19]}  e5 {[%clk 0:01:12]} 28. Ne6 {[%clk 0:00:16]}  Rd7 {[%clk 0:01:05]} 29. f4 {[%clk 0:00:04]}  e4 {[%clk 0:01:01]} 30. Ng5 {[%clk 0:00:03]}  h6 {[%clk 0:01:01]} 31. Nh3 {[%clk 0:00:03]}  Rc8 {[%clk 0:01:00]} 32. Rb5 {[%clk 0:00:02]}  g6 {[%clk 0:00:59]} 33. h5 {[%clk 0:00:03]}  Kg7 {[%clk 0:00:58]} 34. hxg6 {[%clk 0:00:03]}  Kxg6 {[%clk 0:00:59]} 35. Rb6+ {[%clk 0:00:04]}  Kh5 {[%clk 0:00:59]} 36. Rb5 {[%clk 0:00:04]}  Kg4 {[%clk 0:00:57]} 37. Nf2+ {[%clk 0:00:05]}  Kxg3 {[%clk 0:00:58]} 38. Nxd3 {[%clk 0:00:05]}  Rxd3 {[%clk 0:00:57]} 39. Rxd3+ {[%clk 0:00:06]}  exd3 {[%clk 0:00:58]} 40. Rxf5 {[%clk 0:00:06]}  Rd8 {[%clk 0:00:56]} 41. Kf1 {[%clk 0:00:00]}  d2 {[%clk 0:00:55]} 0-1


[Site "https://www.chess.com"]

[Event "Titled Tuesday Blitz November 07 Late 2023"]
[White "victormago"]
[Black "Ozates, Tuna"]
[BlackFideId "6354521"]
[WhiteElo "2482"]
[BlackElo "2574"]
[Result "1-0"]
[Round "11"]
[TimeControl "180+1"]
[Date "2023.11.07"]
[WhiteClock "0:00:28"]
[BlackClock "0:00:00"]
[Board "44"]

1. d4 {[%clk 0:03:00]}  Nf6 {[%clk 0:02:55]} 2. c4 {[%clk 0:03:00]}  e6 {[%clk 0:02:55]} 3. Nc3 {[%clk 0:03:01]}  Bb4 {[%clk 0:02:56]} 4. Qc2 {[%clk 0:03:00]}  d5 {[%clk 0:02:54]} 5. cxd5 {[%clk 0:02:59]}  exd5 {[%clk 0:02:54]} 6. Nf3 {[%clk 0:02:57]}  h6 {[%clk 0:02:54]} 7. Bf4 {[%clk 0:02:57]}  O-O {[%clk 0:02:54]} 8. h3 {[%clk 0:02:55]}  Ne4 {[%clk 0:02:44]} 9. e3 {[%clk 0:02:56]}  Bf5 {[%clk 0:02:44]} 10. Bd3 {[%clk 0:02:56]}  Re8 {[%clk 0:02:36]} 11. O-O {[%clk 0:02:55]}  c6 {[%clk 0:02:28]} 12. a3 {[%clk 0:02:37]}  Bf8 {[%clk 0:02:20]} 13. Bh2 {[%clk 0:02:27]}  Nd7 {[%clk 0:02:20]} 14. Ne5 {[%clk 0:02:26]}  Nxe5 {[%clk 0:02:18]} 15. Bxe5 {[%clk 0:02:27]}  Bd6 {[%clk 0:02:07]} 16. Bxd6 {[%clk 0:02:10]}  Qxd6 {[%clk 0:02:07]} 17. Rae1 {[%clk 0:02:07]}  Qg6 {[%clk 0:01:48]} 18. Kh2 {[%clk 0:02:00]}  h5 {[%clk 0:01:17]} 19. Bxe4 {[%clk 0:01:54]}  dxe4 {[%clk 0:01:12]} 20. Rd1 {[%clk 0:01:41]}  Rad8 {[%clk 0:01:09]} 21. d5 {[%clk 0:01:39]}  c5 {[%clk 0:00:57]} 22. Nb5 {[%clk 0:01:25]}  a6 {[%clk 0:00:57]} 23. Nc3 {[%clk 0:01:15]}  Rd6 {[%clk 0:00:56]} 24. Ne2 {[%clk 0:01:10]}  b6 {[%clk 0:00:51]} 25. b4 {[%clk 0:01:07]}  cxb4 {[%clk 0:00:49]} 26. axb4 {[%clk 0:01:08]}  Qf6 {[%clk 0:00:45]} 27. Qa2 {[%clk 0:00:59]}  Qe5+ {[%clk 0:00:42]} 28. Kg1 {[%clk 0:00:59]}  Bxh3 {[%clk 0:00:25]} 29. gxh3 {[%clk 0:00:47]}  Rg6+ {[%clk 0:00:26]} 30. Kh1 {[%clk 0:00:44]}  Rf6 {[%clk 0:00:22]} 31. Nf4 {[%clk 0:00:34]}  g5 {[%clk 0:00:21]} 32. Nxh5 {[%clk 0:00:32]}  Rf3 {[%clk 0:00:19]} 33. Kg2 {[%clk 0:00:30]}  Qf5 {[%clk 0:00:15]} 34. Ng3 {[%clk 0:00:30]}  Qe5 {[%clk 0:00:12]} 35. d6 {[%clk 0:00:28]}  Kg7 {[%clk 0:00:10]} 36. d7 {[%clk 0:00:28]}  Rd8 {[%clk 0:00:00]} 37. Qd5 {[%clk 0:00:28]} 1-0


[Site "https://www.chess.com"]

[Event "Titled Tuesday Blitz November 07 Late 2023"]
[White "Awoki, Daniel Teidi"]
[Black "Kochiev, Ivan"]
[WhiteFideId "2100827"]
[BlackFideId "2917890"]
[WhiteElo "2344"]
[BlackElo "2530"]
[Result "0-1"]
[Round "11"]
[TimeControl "180+1"]
[Date "2023.11.07"]
[WhiteClock "0:00:36"]
[BlackClock "0:00:52"]
[Board "46"]

1. e4 {[%clk 0:03:00]}  e5 {[%clk 0:02:56]} 2. Nf3 {[%clk 0:03:01]}  Nf6 {[%clk 0:02:56]} 3. Nc3 {[%clk 0:03:00]}  Nc6 {[%clk 0:02:55]} 4. Bb5 {[%clk 0:03:00]}  Bc5 {[%clk 0:02:55]} 5. O-O {[%clk 0:03:00]}  d6 {[%clk 0:02:55]} 6. d3 {[%clk 0:03:00]}  O-O {[%clk 0:02:53]} 7. Bg5 {[%clk 0:03:00]}  Ne7 {[%clk 0:02:42]} 8. Bxf6 {[%clk 0:02:57]}  gxf6 {[%clk 0:02:43]} 9. Na4 {[%clk 0:02:52]}  c6 {[%clk 0:02:34]} 10. Nxc5 {[%clk 0:02:49]}  dxc5 {[%clk 0:02:31]} 11. Bc4 {[%clk 0:02:49]}  Ng6 {[%clk 0:02:31]} 12. h3 {[%clk 0:02:42]}  Kh8 {[%clk 0:02:25]} 13. Nh2 {[%clk 0:02:39]}  Nf4 {[%clk 0:02:21]} 14. h4 {[%clk 0:02:13]}  Rg8 {[%clk 0:02:12]} 15. g3 {[%clk 0:02:13]}  f5 {[%clk 0:02:12]} 16. Kh1 {[%clk 0:02:02]}  Ne6 {[%clk 0:01:45]} 17. exf5 {[%clk 0:02:01]}  Nd4 {[%clk 0:01:46]} 18. Bxf7 {[%clk 0:01:49]}  Rg7 {[%clk 0:01:34]} 19. Be6 {[%clk 0:01:49]}  Nxe6 {[%clk 0:01:32]} 20. fxe6 {[%clk 0:01:50]}  Bxe6 {[%clk 0:01:33]} 21. Qh5 {[%clk 0:01:44]}  Qd5+ {[%clk 0:01:25]} 22. Qf3 {[%clk 0:01:33]}  Qxf3+ {[%clk 0:01:24]} 23. Nxf3 {[%clk 0:01:31]}  Bd5 {[%clk 0:01:25]} 24. Rfe1 {[%clk 0:01:06]}  Bxf3+ {[%clk 0:01:24]} 25. Kh2 {[%clk 0:01:07]}  Re7 {[%clk 0:01:23]} 26. Re3 {[%clk 0:01:06]}  Bd5 {[%clk 0:01:18]} 27. Rae1 {[%clk 0:01:07]}  Rae8 {[%clk 0:01:14]} 28. f4 {[%clk 0:01:07]}  e4 {[%clk 0:01:03]} 29. g4 {[%clk 0:00:58]}  exd3 {[%clk 0:00:52]} 30. Rxe7 {[%clk 0:00:36]}  Rxe7 {[%clk 0:00:52]} 0-1


[Site "https://www.chess.com"]

[Event "Titled Tuesday Blitz November 07 Late 2023"]
[White "bettercallcafu"]
[Black "Kujawski, Adam"]
[BlackFideId "1100920"]
[WhiteElo "2706"]
[BlackElo "2402"]
[Result "0-1"]
[Round "11"]
[TimeControl "180+1"]
[Date "2023.11.07"]
[WhiteClock "0:00:05"]
[BlackClock "0:00:10"]
[Board "47"]

1. d4 {[%clk 0:03:00]}  Nf6 {[%clk 0:02:52]} 2. Nc3 {[%clk 0:02:55]}  d5 {[%clk 0:02:49]} 3. Bf4 {[%clk 0:02:50]}  a6 {[%clk 0:02:46]} 4. e3 {[%clk 0:02:49]}  e6 {[%clk 0:02:46]} 5. g4 {[%clk 0:02:48]}  Bd6 {[%clk 0:02:38]} 6. g5 {[%clk 0:02:48]}  Bxf4 {[%clk 0:02:33]} 7. gxf6 {[%clk 0:02:44]}  Bh6 {[%clk 0:02:31]} 8. fxg7 {[%clk 0:02:45]}  Bxg7 {[%clk 0:02:31]} 9. Nf3 {[%clk 0:02:45]}  c5 {[%clk 0:02:21]} 10. Rg1 {[%clk 0:02:46]}  Kf8 {[%clk 0:01:52]} 11. Ne5 {[%clk 0:02:39]}  Nd7 {[%clk 0:01:40]} 12. Nxd7+ {[%clk 0:02:36]}  Bxd7 {[%clk 0:01:38]} 13. Qg4 {[%clk 0:02:36]}  Rg8 {[%clk 0:01:20]} 14. Bd3 {[%clk 0:02:34]}  cxd4 {[%clk 0:00:47]} 15. exd4 {[%clk 0:02:29]}  e5 {[%clk 0:00:24]} 16. Qh5 {[%clk 0:02:12]}  e4 {[%clk 0:00:21]} 17. Be2 {[%clk 0:02:05]}  Qf6 {[%clk 0:00:21]} 18. O-O-O {[%clk 0:01:50]}  Be6 {[%clk 0:00:15]} 19. Nxd5 {[%clk 0:01:38]}  Qxf2 {[%clk 0:00:11]} 20. Nc7 {[%clk 0:01:31]}  Qf4+ {[%clk 0:00:04]} 21. Kb1 {[%clk 0:01:26]}  Qxc7 {[%clk 0:00:04]} 22. d5 {[%clk 0:01:24]}  Qe5 {[%clk 0:00:03]} 23. Qxe5 {[%clk 0:01:22]}  Bxe5 {[%clk 0:00:04]} 24. dxe6 {[%clk 0:01:19]}  fxe6 {[%clk 0:00:05]} 25. Rgf1+ {[%clk 0:01:19]}  Ke7 {[%clk 0:00:05]} 26. h4 {[%clk 0:01:15]}  Raf8 {[%clk 0:00:05]} 27. Bh5 {[%clk 0:00:54]}  Rxf1 {[%clk 0:00:04]} 28. Rxf1 {[%clk 0:00:54]}  Rf8 {[%clk 0:00:04]} 29. Rxf8 {[%clk 0:00:52]}  Kxf8 {[%clk 0:00:04]} 30. Bg4 {[%clk 0:00:52]}  Kf7 {[%clk 0:00:04]} 31. c3 {[%clk 0:00:52]}  h6 {[%clk 0:00:04]} 32. Kc2 {[%clk 0:00:52]}  a5 {[%clk 0:00:04]} 33. c4 {[%clk 0:00:51]}  b6 {[%clk 0:00:04]} 34. b3 {[%clk 0:00:51]}  Kf6 {[%clk 0:00:04]} 35. Kd2 {[%clk 0:00:49]}  Bd4 {[%clk 0:00:04]} 36. Ke2 {[%clk 0:00:49]}  Ke5 {[%clk 0:00:04]} 37. Bh5 {[%clk 0:00:46]}  Bc5 {[%clk 0:00:03]} 38. Bf7 {[%clk 0:00:45]}  Kf5 {[%clk 0:00:03]} 39. h5 {[%clk 0:00:45]}  Ke5 {[%clk 0:00:02]} 40. Bg8 {[%clk 0:00:44]}  Kf5 {[%clk 0:00:02]} 41. Bf7 {[%clk 0:00:44]}  Ke5 {[%clk 0:00:03]} 42. Be8 {[%clk 0:00:43]}  Kf5 {[%clk 0:00:03]} 43. a4 {[%clk 0:00:42]}  Ke5 {[%clk 0:00:03]} 44. Bc6 {[%clk 0:00:40]}  Kd4 {[%clk 0:00:03]} 45. Bd7 {[%clk 0:00:38]}  Kc3 {[%clk 0:00:03]} 46. Bxe6 {[%clk 0:00:36]}  Kxb3 {[%clk 0:00:04]} 47. Bd7 {[%clk 0:00:35]}  Kxc4 {[%clk 0:00:04]} 48. Bc6 {[%clk 0:00:35]}  Kd4 {[%clk 0:00:05]} 49. Bb5 {[%clk 0:00:35]}  Ke5 {[%clk 0:00:06]} 50. Be8 {[%clk 0:00:34]}  Kf4 {[%clk 0:00:07]} 51. Bb5 {[%clk 0:00:34]}  Bd4 {[%clk 0:00:06]} 52. Be8 {[%clk 0:00:34]}  Bf6 {[%clk 0:00:06]} 53. Bc6 {[%clk 0:00:32]}  Bg5 {[%clk 0:00:06]} 54. Be8 {[%clk 0:00:32]}  Ke5 {[%clk 0:00:07]} 55. Bc6 {[%clk 0:00:32]}  Kd4 {[%clk 0:00:07]} 56. Be8 {[%clk 0:00:32]}  e3 {[%clk 0:00:08]} 57. Bb5 {[%clk 0:00:32]}  Ke5 {[%clk 0:00:08]} 58. Be8 {[%clk 0:00:32]}  Kf4 {[%clk 0:00:08]} 59. Bb5 {[%clk 0:00:33]}  Kg4 {[%clk 0:00:09]} 60. Be8 {[%clk 0:00:32]}  Kf5 {[%clk 0:00:09]} 61. Bg6+ {[%clk 0:00:32]}  Ke5 {[%clk 0:00:09]} 62. Be8 {[%clk 0:00:32]}  Kf4 {[%clk 0:00:09]} 63. Bb5 {[%clk 0:00:30]}  Bf6 {[%clk 0:00:08]} 64. Be8 {[%clk 0:00:30]}  Bd4 {[%clk 0:00:09]} 65. Bb5 {[%clk 0:00:30]}  Bc5 {[%clk 0:00:09]} 66. Be8 {[%clk 0:00:30]}  Kg4 {[%clk 0:00:10]} 67. Bf7 {[%clk 0:00:27]}  b5 {[%clk 0:00:09]} 68. axb5 {[%clk 0:00:26]}  a4 {[%clk 0:00:10]} 69. Bg6 {[%clk 0:00:13]}  a3 {[%clk 0:00:10]} 70. Bf7 {[%clk 0:00:14]}  Kg5 {[%clk 0:00:09]} 71. Kf3 {[%clk 0:00:13]}  Kf5 {[%clk 0:00:08]} 72. Bb3 {[%clk 0:00:12]}  Ke5 {[%clk 0:00:08]} 73. Bf7 {[%clk 0:00:12]}  Kd4 {[%clk 0:00:08]} 74. Bb3 {[%clk 0:00:09]}  Kc3 {[%clk 0:00:08]} 75. Bd5 {[%clk 0:00:09]}  Kb2 {[%clk 0:00:08]} 76. Ke2 {[%clk 0:00:08]}  a2 {[%clk 0:00:08]} 77. Bxa2 {[%clk 0:00:07]}  Kxa2 {[%clk 0:00:09]} 78. Kd3 {[%clk 0:00:07]}  Kb3 {[%clk 0:00:09]} 79. Ke2 {[%clk 0:00:05]}  Kc3 {[%clk 0:00:10]} 0-1


[Site "https://www.chess.com"]